Workbook

Sheet このファイルの使い方
B2: おすぎ君カスタムの使い方
B3: カルロスさんの銘柄抽出マニュアルの手順を自動化したのがこのファイルです。
B4: 最初に２つ注意事項があります。
B5: １、yahooファイナンスのデータを読み込むのでインターネットに接続している必要があります。
B6: ２、エクセルのマクロ機能を使っているのでマイクロソフトのエクセル以外では正しく動作しない可能性があります。
B8: 上記の注意点を守ってこのファイルを活用してください。
B10: 値上がり率の抽出をする時は『買い』シートを使用してください。
B11: 値下がり率の抽出をする時は『売り』シートを使用してください。
B13: 手順は１、更新ボタンを押す ２、計算ボタンを押す ３、抽出ボタンを押す これで終了です。
B14: 『買い』で抽出された銘柄コードを別のファイルにコピーしてから『売り』を抽出してください。

Sheet 買い
K1: =F1*I1/10000 -> 0 | R1: 『復旧』はファイルが壊れた時だけ使うので普段は押さない
A2: 5 | B2: 7518 | C2: 東証1部 | D2: ネットワンシステムズ(株) | F2: 3410 | G2: 0.118 | H2: 360 | I2: 2652500 | J2: 掲示板 | K2: =F2*I2/10000 -> 904502.5
A3: 6 | B3: 9613 | C3: 東証1部 | D3: (株)ＮＴＴデータ | F3: 1318 | G3: 0.1104 | H3: 131 | I3: 12280000 | J3: 掲示板 | K3: 1618504
A4: 9 | B4: 3902 | C4: 東証1部 | D4: メディカル・データ・ビジョン(株) | F4: 2602 | G4: 0.1007 | H4: 238 | I4: 1479000 | J4: 掲示板 | K4: 384835.8
A5: 16 | B5: 3762 | C5: 東証1部 | D5: テクマトリックス(株) | F5: 1986 | G5: 0.087 | H5: 159 | I5: 1264100 | J5: 掲示板 | K5: 251050.26
A6: 32 | B6: 4739 | C6: 東証1部 | D6: 伊藤忠テクノソリューションズ(株) | F6: 3750 | G6: 0.0684 | H6: 240 | I6: 1815100 | J6: 掲示板 | K6: 680662.5
A7: 39 | B7: 3681 | C7: 東証1部 | D7: (株)ブイキューブ | F7: 2428 | G7: 0.0644 | H7: 147 | I7: 3276100 | J7: 掲示板 | K7: 795437.08
A8: 54 | B8: 4519 | C8: 東証1部 | D8: 中外製薬(株) | F8: 4314 | G8: 0.0592 | H8: 241 | I8: 2490400 | J8: 掲示板 | K8: 1074358.56
A9: 65 | B9: 6841 | C9: 東証1部 | D9: 横河電機(株) | F9: 1650 | G9: 0.0557 | H9: 87 | I9: 1080100 | J9: 掲示板 | K9: =F9*I9/10000 -> 178216.5
A10: 67 | B10: 5214 | C10: 東証1部 | D10: 日本電気硝子(株) | F10: 2172 | G10: 0.0554 | H10: 114 | I10: 1355700 | J10: 掲示板 | K10: 294458.04
A11: 70 | B11: 2427 | C11: 東証1部 | D11: (株)アウトソーシング | F11: 1048 | G11: 0.0543 | H11: 54 | I11: 2225000 | J11: 掲示板 | K11: 233180
A12: 73 | B12: 1605 | C12: 東証1部 | D12: 国際石油開発帝石(株) | F12: 526 | G12: 0.0541 | H12: 27 | I12: 9449800 | J12: 掲示板 | K12: 497059.48
A13: 75 | B13: 8005 | C13: 東証1部 | D13: (株)スクロール | F13: 741 | G13: 0.0541 | H13: 38 | I13: 2046900 | J13: 掲示板 | K13: 151675.29
A14: 77 | B14: 3031 | C14: 東証1部 | D14: (株)ラクーンホールディングス | F14: 2099 | G14: 0.0527 | H14: 105 | I14: 1044700 | J14: 掲示板 | K14: 219282.53
A15: 81 | B15: 6098 | C15: 東証1部 | D15: (株)リクルートホールディングス | F15: 4362 | G15: 0.0516 | H15: 214 | I15: 4607700 | J15: 掲示板 | K15: 2009878.74
A16: 83 | B16: 8591 | C16: 東証1部 | D16: オリックス(株) | F16: 1336.5 | G16: 0.0515 | H16: 66 | I16: 14262300 | J16: 掲示板 | K16: 1906156.395
A17: 109 | B17: 2492 | C17: 東証1部 | D17: (株)インフォマート | F17: 933 | G17: 0.0471 | H17: 42 | I17: 1180800 | J17: 掲示板 | K17: 110168.64
A18: 113 | B18: 4568 | C18: 東証1部 | D18: 第一三共(株) | F18: 2988.5 | G18: 0.0466 | H18: 133 | I18: 5220900 | J18: 掲示板 | K18: 1560265.965
A19: 120 | B19: 7205 | C19: 東証1部 | D19: 日野自動車(株) | F19: 851 | G19: 0.0455 | H19: 37 | I19: 3356300 | J19: 掲示板 | K19: 285621.13
A20: 124 | B20: 4062 | C20: 東証1部 | D20: イビデン(株) | F20: 4270 | G20: 0.0453 | H20: 185 | I20: 1082400 | J20: 掲示板 | K20: 462184.8
A21: 143 | B21: 7270 | C21: 東証1部 | D21: (株)ＳＵＢＡＲＵ | F21: 2068.5 | G21: 0.0429 | H21: 85 | I21: 5543400 | J21: 掲示板 | K21: =F21*I21/10000 -> 1146652.29
A22: 145 | B22: 4503 | C22: 東証1部 | D22: アステラス製薬(株) | F22: 1515 | G22: 0.0427 | H22: 62 | I22: 7652600 | J22: 掲示板 | K22: 1159368.9
A23: 149 | B23: 3402 | C23: 東証1部 | D23: 東レ(株) | F23: 500.6 | G23: 0.042 | H23: 20.2 | I23: 12282300 | J23: 掲示板 | K23: 614851.938
A24: 165 | B24: 3092 | C24: 東証1部 | D24: (株)ＺＯＺＯ | F24: 2721 | G24: 0.0409 | H24: 107 | I24: 1948300 | J24: 掲示板 | K24: 530132.43
A25: 166 | B25: 8801 | C25: 東証1部 | D25: 三井不動産(株) | F25: 1915 | G25: 0.0408 | H25: 75 | I25: 3410100 | J25: 掲示板 | K25: 653034.15
A26: 172 | B26: 7608 | C26: 東証1部 | D26: (株)エスケイジャパン | F26: 545 | G26: 0.0401 | H26: 21 | I26: 2052600 | J26: 掲示板 | K26: 111866.7
A27: 183 | B27: 9766 | C27: 東証1部 | D27: コナミホールディングス(株) | F27: 4365 | G27: 0.0393 | H27: 165 | I27: 1002800 | J27: 掲示板 | K27: 437722.2
A28: 189 | B28: 5713 | C28: 東証1部 | D28: 住友金属鉱山(株) | F28: 3385 | G28: 0.0387 | H28: 126 | I28: 1426200 | J28: 掲示板 | K28: 482768.7

Sheet 売り
K1: =F1*I1/10000 -> 0 | S1: 『復旧』はファイルが壊れた時だけ使うので普段は押さない
A2: 1 | B2: 8918 | C2: 東証1部 | D2: (株)ランド | F2: 9 | G2: -0.1 | H2: -1 | I2: 24308500 | J2: 掲示板 | K2: =F2*I2/10000 -> 21877.65
A3: 2 | B3: 2689 | C3: 東証1部 | D3: (株)カワニシホールディングス | F3: 1335 | G3: -0.0677 | H3: -97 | I3: 31100 | J3: 掲示板 | K3: 4151.85
A4: 3 | B4: 9519 | C4: 東証1部 | D4: (株)レノバ | F4: 1590 | G4: -0.0636 | H4: -108 | I4: 2294700 | J4: 掲示板 | K4: 364857.3
A5: 4 | B5: 9768 | C5: 東証1部 | D5: いであ(株) | F5: 1791 | G5: -0.0589 | H5: -112 | I5: 113500 | J5: 掲示板 | K5: 20327.85
A6: 5 | B6: 8275 | C6: 東証1部 | D6: (株)フォーバル | F6: 946 | G6: -0.0492 | H6: -49 | I6: 6200 | J6: 掲示板 | K6: =F51*I51/10000 -> 3260.4
A7: 6 | B7: 2229 | C7: 東証1部 | D7: カルビー(株) | F7: 3070 | G7: -0.0436 | H7: -140 | I7: 1238300 | J7: 掲示板 | K7: =F52*I52/10000 -> 180.62
A8: 7 | B8: 6806 | C8: 東証1部 | D8: ヒロセ電機(株) | F8: 14290 | G8: -0.0435 | H8: -650 | I8: 251400 | J8: 掲示板 | K8: =F53*I53/10000 -> 852358.05
A9: 8 | B9: 8392 | C9: 東証1部 | D9: (株)大分銀行 | F9: 2421 | G9: -0.0435 | H9: -110 | I9: 43700 | J9: 掲示板 | K9: =F54*I54/10000 -> 352408.68
A10: 9 | B10: 6413 | C10: 東証1部 | D10: 理想科学工業(株) | F10: 1214 | G10: -0.0426 | H10: -54 | I10: 79100 | J10: 掲示板 | K10: =F55*I55/10000 -> 54890.8
A11: 10 | B11: 3319 | C11: 東証1部 | D11: (株)ゴルフダイジェスト・オンライン | F11: 832 | G11: -0.0415 | H11: -36 | I11: 290600 | J11: 掲示板 | K11: =F101*I101/10000 -> 33276.6
A12: 11 | B12: 5932 | C12: 東証1部 | D12: 三協立山(株) | F12: 913 | G12: -0.041 | H12: -39 | I12: 75400 | J12: 掲示板 | K12: =F102*I102/10000 -> 686091
A13: 12 | B13: 4116 | C13: 東証1部 | D13: 大日精化工業(株) | F13: 2146 | G13: -0.0407 | H13: -91 | I13: 60100 | J13: 掲示板 | K13: =F103*I103/10000 -> 46644
A14: 13 | B14: 8165 | C14: 東証1部 | D14: (株)千趣会 | F14: 330 | G14: -0.0407 | H14: -14 | I14: 412600 | J14: 掲示板 | K14: =F104*I104/10000 -> 4713.66
A15: 14 | B15: 5821 | C15: 東証1部 | D15: 平河ヒューテック(株) | F15: 1028 | G15: -0.0401 | H15: -43 | I15: 27400 | J15: 掲示板 | K15: =F151*I151/10000 -> 15550.15
A16: 15 | B16: 8089 | C16: 東証1部 | D16: ナイス(株) | F16: 1310 | G16: -0.0389 | H16: -53 | I16: 19000 | J16: 掲示板 | K16: =F152*I152/10000 -> 3178117.62
A17: 16 | B17: 9308 | C17: 東証1部 | D17: 乾汽船(株) | F17: 905 | G17: -0.0383 | H17: -36 | I17: 92800 | J17: 掲示板 | K17: =F153*I153/10000 -> 475276.6
A18: 17 | B18: 3932 | C18: 東証1部 | D18: (株)アカツキ | F18: 4780 | G18: -0.0382 | H18: -190 | I18: 243400 | J18: 掲示板 | K18: =F201*I201/10000 -> 42254.74
A19: 18 | B19: 4286 | C19: 東証1部 | D19: (株)レッグス | F19: 1482 | G19: -0.037 | H19: -57 | I19: 147200 | J19: 掲示板
A20: 19 | B20: 8182 | C20: 東証1部 | D20: (株)いなげや | F20: 1819 | G20: -0.0355 | H20: -67 | I20: 230500 | J20: 掲示板
A21: 20 | B21: 9143 | C21: 東証1部 | D21: ＳＧホールディングス(株) | F21: 2495 | G21: -0.0352 | H21: -91 | I21: 1554100 | J21: 掲示板
A22: 21 | B22: 5602 | C22: 東証1部 | D22: (株)栗本鐵工所 | F22: 1872 | G22: -0.0346 | H22: -67 | I22: 41200 | J22: 掲示板
A23: 22 | B23: 8917 | C23: 東証1部 | D23: ファースト住建(株) | F23: 984 | G23: -0.0334 | H23: -34 | I23: 48500 | J23: 掲示板
A24: 23 | B24: 8059 | C24: 東証1部 | D24: 第一実業(株) | F24: 3685 | G24: -0.0328 | H24: -125 | I24: 35600 | J24: 掲示板
A25: 24 | B25: 9513 | C25: 東証1部 | D25: Ｊ−ＰＯＷＥＲ | F25: 1476 | G25: -0.0328 | H25: -50 | I25: 1174200 | J25: 掲示板
A26: 25 | B26: 5711 | C26: 東証1部 | D26: 三菱マテリアル(株) | F26: 1903 | G26: -0.0325 | H26: -64 | I26: 1292400 | J26: 掲示板
A27: 26 | B27: 6490 | C27: 東証1部 | D27: 日本ピラー工業(株) | F27: 1458 | G27: -0.0325 | H27: -49 | I27: 63800 | J27: 掲示板
A28: 27 | B28: 4345 | C28: 東証1部 | D28: (株)シーティーエス | F28: 926 | G28: -0.0324 | H28: -31 | I28: 239500 | J28: 掲示板
A29: 28 | B29: 8133 | C29: 東証1部 | D29: 伊藤忠エネクス(株) | F29: 955 | G29: -0.0324 | H29: -32 | I29: 288100 | J29: 掲示板
A30: 29 | B30: 9090 | C30: 東証1部 | D30: (株)丸和運輸機関 | F30: 4370 | G30: -0.0321 | H30: -145 | I30: 518400 | J30: 掲示板
A31: 30 | B31: 4620 | C31: 東証1部 | D31: 藤倉化成(株) | F31: 484 | G31: -0.032 | H31: -16 | I31: 21100 | J31: 掲示板
A32: 31 | B32: 7172 | C32: 東証1部 | D32: (株)ジャパンインベストメントアドバイザー | F32: 1211 | G32: -0.032 | H32: -40 | I32: 672000 | J32: 掲示板
A33: 32 | B33: 3391 | C33: 東証1部 | D33: (株)ツルハホールディングス | F33: 14510 | G33: -0.0314 | H33: -470 | I33: 175300 | J33: 掲示板
A34: 33 | B34: 2148 | C34: 東証1部 | D34: アイティメディア(株) | F34: 2558 | G34: -0.0311 | H34: -82 | I34: 536400 | J34: 掲示板
A35: 34 | B35: 8772 | C35: 東証1部 | D35: (株)アサックス | F35: 667 | G35: -0.0291 | H35: -20 | I35: 115000 | J35: 掲示板
A36: 35 | B36: 4350 | C36: 東証1部 | D36: (株)メディカルシステムネットワーク | F36: 438 | G36: -0.0288 | H36: -13 | I36: 60500 | J36: 掲示板
A37: 36 | B37: 9275 | C37: 東証1部 | D37: (株)ナルミヤ・インターナショナル | F37: 782 | G37: -0.0286 | H37: -23 | I37: 61800 | J37: 掲示板
A38: 37 | B38: 4526 | C38: 東証1部 | D38: 理研ビタミン(株) | F38: 1468 | G38: -0.0285 | H38: -43 | I38: 286900 | J38: 掲示板
A39: 38 | B39: 9837 | C39: 東証1部 | D39: モリト(株) | F39: 648 | G39: -0.0285 | H39: -19 | I39: 18200 | J39: 掲示板
A40: 39 | B40: 8016 | C40: 東証1部 | D40: (株)オンワードホールディングス | F40: 205 | G40: -0.0284 | H40: -6 | I40: 1228800 | J40: 掲示板
A41: 40 | B41: 9517 | C41: 東証1部 | D41: イーレックス(株) | F41: 1132 | G41: -0.0275 | H41: -32 | I41: 631100 | J41: 掲示板
A42: 41 | B42: 6924 | C42: 東証1部 | D42: 岩崎電気(株) | F42: 1348 | G42: -0.0274 | H42: -38 | I42: 73900 | J42: 掲示板
A43: 42 | B43: 7354 | C43: 東証1部 | D43: (株)ダイレクトマーケティングミックス | F43: 2443 | G43: -0.0271 | H43: -68 | I43: 127600 | J43: 掲示板
A44: 43 | B44: 7679 | C44: 東証1部 | D44: (株)薬王堂ホールディングス | F44: 2515 | G44: -0.0267 | H44: -69 | I44: 27900 | J44: 掲示板
A45: 44 | B45: 9551 | C45: 東証1部 | D45: メタウォーター(株) | F45: 2414 | G45: -0.0266 | H45: -66 | I45: 149200 | J45: 掲示板
A46: 45 | B46: 2812 | C46: 東証1部 | D46: 焼津水産化学工業(株) | F46: 990 | G46: -0.0265 | H46: -27 | I46: 7200 | J46: 掲示板
A47: 46 | B47: 5367 | C47: 東証1部 | D47: (株)ニッカトー | F47: 699 | G47: -0.0265 | H47: -19 | I47: 12200 | J47: 掲示板
A48: 47 | B48: 8283 | C48: 東証1部 | D48: (株)ＰＡＬＴＡＣ | F48: 5560 | G48: -0.0263 | H48: -150 | I48: 96900 | J48: 掲示板
A49: 48 | B49: 8242 | C49: 東証1部 | D49: エイチ・ツー・オー リテイリング(株) | F49: 636 | G49: -0.026 | H49: -17 | I49: 1482500 | J49: 掲示板
A50: 49 | B50: 2904 | C50: 東証1部 | D50: 一正蒲鉾(株) | F50: 1029 | G50: -0.0256 | H50: -27 | I50: 12600 | J50: 掲示板
A51: 50 | B51: 9070 | C51: 東証1部 | D51: トナミホールディングス(株) | F51: 5720 | G51: -0.0256 | H51: -150 | I51: 5700 | J51: 掲示板
A52: 51 | B52: 7916 | C52: 東証1部 | D52: 光村印刷(株) | F52: 1642 | G52: -0.0255 | H52: -43 | I52: 1100 | J52: 掲示板
A53: 52 | B53: 8697 | C53: 東証1部 | D53: (株)日本取引所グループ | F53: 2489 | G53: -0.0255 | H53: -65 | I53: 3424500 | J53: 掲示板
A54: 53 | B54: 5938 | C54: 東証1部 | D54: (株)ＬＩＸＩＬグループ | F54: 2313 | G54: -0.0253 | H54: -60 | I54: 1523600 | J54: 掲示板
A55: 54 | B55: 3333 | C55: 東証1部 | D55: (株)あさひ | F55: 1640 | G55: -0.025 | H55: -42 | I55: 334700 | J55: 掲示板
A56: 55 | B56: 3765 | C56: 東証1部 | D56: ガンホー・オンライン・エンターテイメント(株) | F56: 2467 | G56: -0.0249 | H56: -63 | I56: 1506700 | J56: 掲示板
A57: 56 | B57: 8081 | C57: 東証1部 | D57: (株)カナデン | F57: 1312 | G57: -0.0245 | H57: -33 | I57: 20800 | J57: 掲示板
A58: 57 | B58: 4968 | C58: 東証1部 | D58: 荒川化学工業(株) | F58: 1128 | G58: -0.0242 | H58: -28 | I58: 97800 | J58: 掲示板
A59: 58 | B59: 9984 | C59: 東証1部 | D59: ソフトバンクグループ(株) | F59: 6535 | G59: -0.024 | H59: -161 | I59: 21179800 | J59: 掲示板
A60: 59 | B60: 6278 | C60: 東証1部 | D60: ユニオンツール(株) | F60: 3110 | G60: -0.0235 | H60: -75 | I60: 16300 | J60: 掲示板
A61: 60 | B61: 8344 | C61: 東証1部 | D61: (株)山形銀行 | F61: 1316 | G61: -0.023 | H61: -31 | I61: 69600 | J61: 掲示板
A62: 61 | B62: 9760 | C62: 東証1部 | D62: (株)進学会ホールディングス | F62: 425 | G62: -0.023 | H62: -10 | I62: 10800 | J62: 掲示板
A63: 62 | B63: 7874 | C63: 東証1部 | D63: レック(株) | F63: 1463 | G63: -0.0227 | H63: -34 | I63: 94500 | J63: 掲示板
A64: 63 | B64: 7940 | C64: 東証1部 | D64: ウェーブロックホールディングス(株) | F64: 696 | G64: -0.0225 | H64: -16 | I64: 107500 | J64: 掲示板
A65: 64 | B65: 3591 | C65: 東証1部 | D65: (株)ワコールホールディングス | F65: 2056 | G65: -0.0223 | H65: -47 | I65: 235300 | J65: 掲示板
A66: 65 | B66: 8521 | C66: 東証1部 | D66: (株)長野銀行 | F66: 1406 | G66: -0.0223 | H66: -32 | I66: 5200 | J66: 掲示板
A67: 66 | B67: 5410 | C67: 東証1部 | D67: 合同製鐵(株) | F67: 1937 | G67: -0.0222 | H67: -44 | I67: 209100 | J67: 掲示板
A68: 67 | B68: 8084 | C68: 東証1部 | D68: 菱電商事(株) | F68: 1502 | G68: -0.0221 | H68: -34 | I68: 21100 | J68: 掲示板
A69: 68 | B69: 1375 | C69: 東証1部 | D69: (株)雪国まいたけ | F69: 2012 | G69: -0.0219 | H69: -45 | I69: 173300 | J69: 掲示板
A70: 69 | B70: 7224 | C70: 東証1部 | D70: 新明和工業(株) | F70: 848 | G70: -0.0219 | H70: -19 | I70: 389900 | J70: 掲示板
A71: 70 | B71: 8342 | C71: 東証1部 | D71: (株)青森銀行 | F71: 2324 | G71: -0.0219 | H71: -52 | I71: 37300 | J71: 掲示板
A72: 71 | B72: 8350 | C72: 東証1部 | D72: (株)みちのく銀行 | F72: 1160 | G72: -0.0219 | H72: -26 | I72: 29900 | J72: 掲示板
A73: 72 | B73: 7936 | C73: 東証1部 | D73: (株)アシックス | F73: 1307 | G73: -0.0217 | H73: -29 | I73: 834200 | J73: 掲示板
A74: 73 | B74: 4092 | C74: 東証1部 | D74: 日本化学工業(株) | F74: 2397 | G74: -0.0216 | H74: -53 | I74: 31800 | J74: 掲示板
A75: 74 | B75: 3191 | C75: 東証1部 | D75: (株)ジョイフル本田 | F75: 1612 | G75: -0.0213 | H75: -35 | I75: 298700 | J75: 掲示板
A76: 75 | B76: 8356 | C76: 東証1部 | D76: (株)十六銀行 | F76: 1943 | G76: -0.0212 | H76: -42 | I76: 64900 | J76: 掲示板
A77: 76 | B77: 4205 | C77: 東証1部 | D77: 日本ゼオン(株) | F77: 1261 | G77: -0.021 | H77: -27 | I77: 776100 | J77: 掲示板
A78: 77 | B78: 1878 | C78: 東証1部 | D78: 大東建託(株) | F78: 9460 | G78: -0.0207 | H78: -200 | I78: 310300 | J78: 掲示板
A79: 78 | B79: 3036 | C79: 東証1部 | D79: アルコニックス(株) | F79: 1469 | G79: -0.0207 | H79: -31 | I79: 75500 | J79: 掲示板
A80: 79 | B80: 8541 | C80: 東証1部 | D80: (株)愛媛銀行 | F80: 1145 | G80: -0.0205 | H80: -24 | I80: 83300 | J80: 掲示板
A81: 80 | B81: 5998 | C81: 東証1部 | D81: (株)アドバネクス | F81: 1209 | G81: -0.0203 | H81: -25 | I81: 2800 | J81: 掲示板
A82: 81 | B82: 7990 | C82: 東証1部 | D82: グローブライド(株) | F82: 3440 | G82: -0.0199 | H82: -70 | I82: 63400 | J82: 掲示板
A83: 82 | B83: 8732 | C83: 東証1部 | D83: (株)マネーパートナーズグループ | F83: 198 | G83: -0.0198 | H83: -4 | I83: 87500 | J83: 掲示板
A84: 83 | B84: 8025 | C84: 東証1部 | D84: (株)ツカモトコーポレーション | F84: 1242 | G84: -0.0197 | H84: -25 | I84: 1800 | J84: 掲示板
A85: 84 | B85: 8174 | C85: 東証1部 | D85: 日本瓦斯(株) | F85: 5000 | G85: -0.0196 | H85: -100 | I85: 254500 | J85: 掲示板
A86: 85 | B86: 3341 | C86: 東証1部 | D86: 日本調剤(株) | F86: 1679 | G86: -0.0193 | H86: -33 | I86: 40400 | J86: 掲示板
A87: 86 | B87: 6157 | C87: 東証1部 | D87: 日進工具(株) | F87: 2187 | G87: -0.0193 | H87: -43 | I87: 30800 | J87: 掲示板
A88: 87 | B88: 8051 | C88: 東証1部 | D88: (株)山善 | F88: 1021 | G88: -0.0192 | H88: -20 | I88: 175800 | J88: 掲示板
A89: 88 | B89: 5357 | C89: 東証1部 | D89: (株)ヨータイ | F89: 772 | G89: -0.0191 | H89: -15 | I89: 25600 | J89: 掲示板
A90: 89 | B90: 5929 | C90: 東証1部 | D90: 三和ホールディングス(株) | F90: 1232 | G90: -0.0191 | H90: -24 | I90: 2069500 | J90: 掲示板
A91: 90 | B91: 7962 | C91: 東証1部 | D91: (株)キングジム | F91: 877 | G91: -0.019 | H91: -17 | I91: 21500 | J91: 掲示板
A92: 91 | B92: 6138 | C92: 東証1部 | D92: ダイジェット工業(株) | F92: 1413 | G92: -0.0188 | H92: -27 | I92: 600 | J92: 掲示板
A93: 92 | B93: 4228 | C93: 東証1部 | D93: 積水化成品工業(株) | F93: 577 | G93: -0.0187 | H93: -11 | I93: 66200 | J93: 掲示板
A94: 93 | B94: 6817 | C94: 東証1部 | D94: スミダコーポレーション(株) | F94: 947 | G94: -0.0187 | H94: -18 | I94: 383500 | J94: 掲示板
A95: 94 | B95: 7239 | C95: 東証1部 | D95: (株)タチエス | F95: 1057 | G95: -0.0186 | H95: -20 | I95: 118300 | J95: 掲示板
A96: 95 | B96: 5191 | C96: 東証1部 | D96: 住友理工(株) | F96: 536 | G96: -0.0183 | H96: -10 | I96: 99700 | J96: 掲示板
A97: 96 | B97: 9202 | C97: 東証1部 | D97: ＡＮＡホールディングス(株) | F97: 2281 | G97: -0.0181 | H97: -42 | I97: 1806800 | J97: 掲示板
A98: 97 | B98: 8168 | C98: 東証1部 | D98: (株)ケーヨー | F98: 770 | G98: -0.0179 | H98: -14 | I98: 344000 | J98: 掲示板
A99: 98 | B99: 8361 | C99: 東証1部 | D99: (株)大垣共立銀行 | F99: 2376 | G99: -0.0178 | H99: -43 | I99: 64300 | J99: 掲示板
A100: 99 | B100: 6420 | C100: 東証1部 | D100: フクシマガリレイ(株) | F100: 3895 | G100: -0.0177 | H100: -70 | I100: 24500 | J100: 掲示板
A101: 100 | B101: 6474 | C101: 東証1部 | D101: (株)不二越 | F101: 4170 | G101: -0.0177 | H101: -75 | I101: 79800 | J101: 掲示板
A102: 101 | B102: 9697 | C102: 東証1部 | D102: (株)カプコン | F102: 5550 | G102: -0.0177 | H102: -100 | I102: 1236200 | J102: 掲示板
A103: 102 | B103: 1822 | C103: 東証1部 | D103: 大豊建設(株) | F103: 3380 | G103: -0.0174 | H103: -60 | I103: 138000 | J103: 掲示板
A104: 103 | B104: 8061 | C104: 東証1部 | D104: 西華産業(株) | F104: 1247 | G104: -0.0173 | H104: -22 | I104: 37800 | J104: 掲示板
A105: 104 | B105: 8562 | C105: 東証1部 | D105: (株)福島銀行 | F105: 227 | G105: -0.0173 | H105: -4 | I105: 490500 | J105: 掲示板
A106: 105 | B106: 3659 | C106: 東証1部 | D106: (株)ネクソン | F106: 2850 | G106: -0.0172 | H106: -50 | I106: 5640100 | J106: 掲示板
A107: 106 | B107: 7231 | C107: 東証1部 | D107: トピー工業(株) | F107: 1090 | G107: -0.0171 | H107: -19 | I107: 31900 | J107: 掲示板
A108: 107 | B108: 5358 | C108: 東証1部 | D108: イソライト工業(株) | F108: 462 | G108: -0.017 | H108: -8 | I108: 55300 | J108: 掲示板
A109: 108 | B109: 6078 | C109: 東証1部 | D109: (株)バリューＨＲ | F109: 1619 | G109: -0.017 | H109: -28 | I109: 32100 | J109: 掲示板
A110: 109 | B110: 6703 | C110: 東証1部 | D110: ＯＫＩ | F110: 981 | G110: -0.017 | H110: -17 | I110: 531300 | J110: 掲示板
A111: 110 | B111: 7481 | C111: 東証1部 | D111: 尾家産業(株) | F111: 1384 | G111: -0.017 | H111: -24 | I111: 3000 | J111: 掲示板
A112: 111 | B112: 8260 | C112: 東証1部 | D112: (株)井筒屋 | F112: 175 | G112: -0.0169 | H112: -3 | I112: 20300 | J112: 掲示板
A113: 112 | B113: 9622 | C113: 東証1部 | D113: (株)スペース | F113: 762 | G113: -0.0168 | H113: -13 | I113: 37500 | J113: 掲示板
A114: 113 | B114: 1379 | C114: 東証1部 | D114: ホクト(株) | F114: 2180 | G114: -0.0167 | H114: -37 | I114: 234900 | J114: 掲示板
A115: 114 | B115: 5988 | C115: 東証1部 | D115: (株)パイオラックス | F115: 1530 | G115: -0.0167 | H115: -26 | I115: 62300 | J115: 掲示板
A116: 115 | B116: 6140 | C116: 東証1部 | D116: 旭ダイヤモンド工業(株) | F116: 472 | G116: -0.0167 | H116: -8 | I116: 195200 | J116: 掲示板
A117: 116 | B117: 6395 | C117: 東証1部 | D117: (株)タダノ | F117: 766 | G117: -0.0167 | H117: -13 | I117: 905200 | J117: 掲示板
A118: 117 | B118: 7282 | C118: 東証1部 | D118: 豊田合成(株) | F118: 2605 | G118: -0.0166 | H118: -44 | I118: 714300 | J118: 掲示板
A119: 118 | B119: 6101 | C119: 東証1部 | D119: (株)ツガミ | F119: 1458 | G119: -0.0162 | H119: -24 | I119: 422500 | J119: 掲示板
A120: 119 | B120: 5122 | C120: 東証1部 | D120: オカモト(株) | F120: 4285 | G120: -0.0161 | H120: -70 | I120: 15900 | J120: 掲示板
A121: 120 | B121: 9351 | C121: 東証1部 | D121: 東洋埠頭(株) | F121: 1410 | G121: -0.0161 | H121: -23 | I121: 1900 | J121: 掲示板
A122: 121 | B122: 4666 | C122: 東証1部 | D122: パーク２４(株) | F122: 1421 | G122: -0.0159 | H122: -23 | I122: 1463800 | J122: 掲示板
A123: 122 | B123: 7974 | C123: 東証1部 | D123: 任天堂(株) | F123: 56680 | G123: -0.0158 | H123: -910 | I123: 1293300 | J123: 掲示板
A124: 123 | B124: 9997 | C124: 東証1部 | D124: (株)ベルーナ | F124: 872 | G124: -0.0158 | H124: -14 | I124: 535900 | J124: 掲示板
A125: 124 | B125: 3073 | C125: 東証1部 | D125: (株)ＤＤホールディングス | F125: 628 | G125: -0.0157 | H125: -10 | I125: 115600 | J125: 掲示板
A126: 125 | B126: 5480 | C126: 東証1部 | D126: 日本冶金工業(株) | F126: 1509 | G126: -0.0157 | H126: -24 | I126: 66500 | J126: 掲示板
A127: 126 | B127: 6358 | C127: 東証1部 | D127: 酒井重工業(株) | F127: 2380 | G127: -0.0157 | H127: -38 | I127: 4300 | J127: 掲示板
A128: 127 | B128: 6788 | C128: 東証1部 | D128: (株)日本トリム | F128: 3770 | G128: -0.0157 | H128: -60 | I128: 22400 | J128: 掲示板
A129: 128 | B129: 9962 | C129: 東証1部 | D129: (株)ミスミグループ本社 | F129: 3135 | G129: -0.0157 | H129: -50 | I129: 734100 | J129: 掲示板
A130: 129 | B130: 4188 | C130: 東証1部 | D130: (株)三菱ケミカルホールディングス | F130: 588.4 | G130: -0.0156 | H130: -9 | I130: 10630200 | J130: 掲示板
A131: 130 | B131: 6222 | C131: 東証1部 | D131: (株)島精機製作所 | F131: 1574 | G131: -0.0156 | H131: -25 | I131: 107700 | J131: 掲示板
A132: 131 | B132: 7723 | C132: 東証1部 | D132: 愛知時計電機(株) | F132: 4410 | G132: -0.0156 | H132: -70 | I132: 2200 | J132: 掲示板
A133: 132 | B133: 2220 | C133: 東証1部 | D133: 亀田製菓(株) | F133: 4770 | G133: -0.0155 | H133: -75 | I133: 37400 | J133: 掲示板
A134: 133 | B134: 7821 | C134: 東証1部 | D134: 前田工繊(株) | F134: 2740 | G134: -0.0155 | H134: -43 | I134: 117100 | J134: 掲示板
A135: 134 | B135: 8336 | C135: 東証1部 | D135: (株)武蔵野銀行 | F135: 1560 | G135: -0.0152 | H135: -24 | I135: 75900 | J135: 掲示板
A136: 135 | B136: 6505 | C136: 東証1部 | D136: 東洋電機製造(株) | F136: 1108 | G136: -0.0151 | H136: -17 | I136: 22300 | J136: 掲示板
A137: 136 | B137: 9078 | C137: 東証1部 | D137: (株)エスライン | F137: 977 | G137: -0.0151 | H137: -15 | I137: 3200 | J137: 掲示板
A138: 137 | B138: 4088 | C138: 東証1部 | D138: エア・ウォーター(株) | F138: 1510 | G138: -0.015 | H138: -23 | I138: 700300 | J138: 掲示板
A139: 138 | B139: 5344 | C139: 東証1部 | D139: (株)ＭＡＲＵＷＡ | F139: 10480 | G139: -0.015 | H139: -160 | I139: 66900 | J139: 掲示板
A140: 139 | B140: 7236 | C140: 東証1部 | D140: (株)ティラド | F140: 1248 | G140: -0.015 | H140: -19 | I140: 28300 | J140: 掲示板
A141: 140 | B141: 8366 | C141: 東証1部 | D141: (株)滋賀銀行 | F141: 2303 | G141: -0.015 | H141: -35 | I141: 63200 | J141: 掲示板
A142: 141 | B142: 8881 | C142: 東証1部 | D142: (株)日神グループホールディングス | F142: 395 | G142: -0.015 | H142: -6 | I142: 62400 | J142: 掲示板
A143: 142 | B143: 1942 | C143: 東証1部 | D143: (株)関電工 | F143: 806 | G143: -0.0147 | H143: -12 | I143: 489900 | J143: 掲示板
A144: 143 | B144: 7512 | C144: 東証1部 | D144: イオン北海道(株) | F144: 870 | G144: -0.0147 | H144: -13 | I144: 48600 | J144: 掲示板
A145: 144 | B145: 8544 | C145: 東証1部 | D145: (株)京葉銀行 | F145: 470 | G145: -0.0147 | H145: -7 | I145: 203300 | J145: 掲示板
A146: 145 | B146: 6925 | C146: 東証1部 | D146: ウシオ電機(株) | F146: 1219 | G146: -0.0146 | H146: -18 | I146: 1421900 | J146: 掲示板
A147: 146 | B147: 2695 | C147: 東証1部 | D147: くら寿司(株) | F147: 6120 | G147: -0.0145 | H147: -90 | I147: 256400 | J147: 掲示板
A148: 147 | B148: 8609 | C148: 東証1部 | D148: (株)岡三証券グループ | F148: 341 | G148: -0.0145 | H148: -5 | I148: 499500 | J148: 掲示板
A149: 148 | B149: 3271 | C149: 東証1部 | D149: (株)ＴＨＥグローバル社 | F149: 205 | G149: -0.0144 | H149: -3 | I149: 258500 | J149: 掲示板
A150: 149 | B150: 7238 | C150: 東証1部 | D150: 曙ブレーキ工業(株) | F150: 138 | G150: -0.0143 | H150: -2 | I150: 469900 | J150: 掲示板
A151: 150 | B151: 8363 | C151: 東証1部 | D151: (株)北國銀行 | F151: 2885 | G151: -0.0143 | H151: -42 | I151: 53900 | J151: 掲示板
A152: 151 | B152: 4689 | C152: 東証1部 | D152: Ｚホールディングス(株) | F152: 639 | G152: -0.0142 | H152: -9 | I152: 49735800 | J152: 掲示板
A153: 152 | B153: 8184 | C153: 東証1部 | D153: (株)島忠 | F153: 5540 | G153: -0.0142 | H153: -80 | I153: 857900 | J153: 掲示板
A154: 153 | B154: 6742 | C154: 東証1部 | D154: (株)京三製作所 | F154: 421 | G154: -0.0141 | H154: -6 | I154: 103000 | J154: 掲示板
A155: 154 | B155: 8217 | C155: 東証1部 | D155: (株)オークワ | F155: 1403 | G155: -0.0141 | H155: -20 | I155: 130700 | J155: 掲示板
A156: 155 | B156: 7327 | C156: 東証1部 | D156: (株)第四北越フィナンシャルグループ | F156: 2040 | G156: -0.014 | H156: -29 | I156: 116400 | J156: 掲示板
A157: 156 | B157: 8362 | C157: 東証1部 | D157: (株)福井銀行 | F157: 1901 | G157: -0.014 | H157: -27 | I157: 39600 | J157: 掲示板
A158: 157 | B158: 8551 | C158: 東証1部 | D158: (株)北日本銀行 | F158: 1965 | G158: -0.014 | H158: -28 | I158: 16300 | J158: 掲示板
A159: 158 | B159: 9930 | C159: 東証1部 | D159: 北沢産業(株) | F159: 282 | G159: -0.014 | H159: -4 | I159: 11200 | J159: 掲示板
A160: 159 | B160: 1941 | C160: 東証1部 | D160: (株)中電工 | F160: 2121 | G160: -0.0139 | H160: -30 | I160: 136500 | J160: 掲示板
A161: 160 | B161: 1944 | C161: 東証1部 | D161: (株)きんでん | F161: 1643 | G161: -0.0138 | H161: -23 | I161: 551300 | J161: 掲示板
A162: 161 | B162: 6262 | C162: 東証1部 | D162: ペガサスミシン製造(株) | F162: 286 | G162: -0.0138 | H162: -4 | I162: 46700 | J162: 掲示板
A163: 162 | B163: 6448 | C163: 東証1部 | D163: ブラザー工業(株) | F163: 1643 | G163: -0.0138 | H163: -23 | I163: 811100 | J163: 掲示板
A164: 163 | B164: 6737 | C164: 東証1部 | D164: ＥＩＺＯ(株) | F164: 3570 | G164: -0.0138 | H164: -50 | I164: 103200 | J164: 掲示板
A165: 164 | B165: 9543 | C165: 東証1部 | D165: 静岡ガス(株) | F165: 927 | G165: -0.0138 | H165: -13 | I165: 96000 | J165: 掲示板
A166: 165 | B166: 9600 | C166: 東証1部 | D166: (株)アイネット | F166: 1431 | G166: -0.0138 | H166: -20 | I166: 49900 | J166: 掲示板
A167: 166 | B167: 8077 | C167: 東証1部 | D167: トルク(株) | F167: 287 | G167: -0.0137 | H167: -4 | I167: 9500 | J167: 掲示板
A168: 167 | B168: 9064 | C168: 東証1部 | D168: ヤマトホールディングス(株) | F168: 2588 | G168: -0.0137 | H168: -36 | I168: 1579900 | J168: 掲示板
A169: 168 | B169: 8345 | C169: 東証1部 | D169: (株)岩手銀行 | F169: 2386 | G169: -0.0136 | H169: -33 | I169: 30300 | J169: 掲示板
A170: 169 | B170: 4249 | C170: 東証1部 | D170: 森六ホールディングス(株) | F170: 1827 | G170: -0.0135 | H170: -25 | I170: 12900 | J170: 掲示板
A171: 170 | B171: 8029 | C171: 東証1部 | D171: (株)ルックホールディングス | F171: 950 | G171: -0.0135 | H171: -13 | I171: 38700 | J171: 掲示板
A172: 171 | B172: 2729 | C172: 東証1部 | D172: (株)ＪＡＬＵＸ | F172: 1400 | G172: -0.0134 | H172: -19 | I172: 25900 | J172: 掲示板
A173: 172 | B173: 4368 | C173: 東証1部 | D173: 扶桑化学工業(株) | F173: 3335 | G173: -0.0133 | H173: -45 | I173: 142200 | J173: 掲示板
A174: 173 | B174: 6282 | C174: 東証1部 | D174: オイレス工業(株) | F174: 1482 | G174: -0.0133 | H174: -20 | I174: 51500 | J174: 掲示板
A175: 174 | B175: 3222 | C175: 東証1部 | D175: ユナイテッド・スーパーマーケット・ホールディングス(株) | F175: 1120 | G175: -0.0132 | H175: -15 | I175: 218900 | J175: 掲示板
A176: 175 | B176: 6553 | C176: 東証1部 | D176: ソウルドアウト(株) | F176: 1500 | G176: -0.0132 | H176: -20 | I176: 52800 | J176: 掲示板
A177: 176 | B177: 6632 | C177: 東証1部 | D177: (株)ＪＶＣケンウッド | F177: 150 | G177: -0.0132 | H177: -2 | I177: 1754000 | J177: 掲示板
A178: 177 | B178: 8255 | C178: 東証1部 | D178: アクシアル リテイリング(株) | F178: 4485 | G178: -0.0132 | H178: -60 | I178: 48300 | J178: 掲示板
A179: 178 | B179: 8524 | C179: 東証1部 | D179: (株)北洋銀行 | F179: 224 | G179: -0.0132 | H179: -3 | I179: 812500 | J179: 掲示板
A180: 179 | B180: 3030 | C180: 東証1部 | D180: (株)ハブ | F180: 601 | G180: -0.0131 | H180: -8 | I180: 21600 | J180: 掲示板
A181: 180 | B181: 5975 | C181: 東証1部 | D181: 東プレ(株) | F181: 1057 | G181: -0.0131 | H181: -14 | I181: 150900 | J181: 掲示板
A182: 181 | B182: 6436 | C182: 東証1部 | D182: アマノ(株) | F182: 2433 | G182: -0.013 | H182: -32 | I182: 344200 | J182: 掲示板
A183: 182 | B183: 9260 | C183: 東証1部 | D183: 西本Ｗｉｓｍｅｔｔａｃホールディングス(株) | F183: 1839 | G183: -0.0129 | H183: -24 | I183: 12700 | J183: 掲示板
A184: 183 | B184: 1333 | C184: 東証1部 | D184: マルハニチロ(株) | F184: 2240 | G184: -0.0128 | H184: -29 | I184: 282100 | J184: 掲示板
A185: 184 | B185: 2175 | C185: 東証1部 | D185: (株)エス・エム・エス | F185: 3075 | G185: -0.0128 | H185: -40 | I185: 386200 | J185: 掲示板
A186: 185 | B186: 9842 | C186: 東証1部 | D186: アークランドサカモト(株) | F186: 2000 | G186: -0.0128 | H186: -26 | I186: 146800 | J186: 掲示板
A187: 186 | B187: 1726 | C187: 東証1部 | D187: (株)ビーアールホールディングス | F187: 778 | G187: -0.0127 | H187: -10 | I187: 153400 | J187: 掲示板
A188: 187 | B188: 1873 | C188: 東証1部 | D188: (株)日本ハウスホールディングス | F188: 234 | G188: -0.0127 | H188: -3 | I188: 188000 | J188: 掲示板
A189: 188 | B189: 6192 | C189: 東証1部 | D189: ハイアス・アンド・カンパニー(株) | F189: 156 | G189: -0.0127 | H189: -2 | I189: 293300 | J189: 掲示板
A190: 189 | B190: 8125 | C190: 東証1部 | D190: (株)ワキタ | F190: 1086 | G190: -0.0127 | H190: -14 | I190: 143300 | J190: 掲示板
A191: 190 | B191: 4973 | C191: 東証1部 | D191: 日本高純度化学(株) | F191: 2576 | G191: -0.0126 | H191: -33 | I191: 3100 | J191: 掲示板
A192: 191 | B192: 8367 | C192: 東証1部 | D192: (株)南都銀行 | F192: 1883 | G192: -0.0126 | H192: -24 | I192: 42900 | J192: 掲示板
A193: 192 | B193: 2151 | C193: 東証1部 | D193: (株)タケエイ | F193: 1108 | G193: -0.0125 | H193: -14 | I193: 654600 | J193: 掲示板
A194: 193 | B194: 3104 | C194: 東証1部 | D194: 富士紡ホールディングス(株) | F194: 3555 | G194: -0.0125 | H194: -45 | I194: 36000 | J194: 掲示板
A195: 194 | B195: 3447 | C195: 東証1部 | D195: 信和(株) | F195: 711 | G195: -0.0125 | H195: -9 | I195: 40900 | J195: 掲示板
A196: 195 | B196: 3467 | C196: 東証1部 | D196: アグレ都市デザイン(株) | F196: 633 | G196: -0.0125 | H196: -8 | I196: 37600 | J196: 掲示板
A197: 196 | B197: 3738 | C197: 東証1部 | D197: (株)ティーガイア | F197: 1901 | G197: -0.0125 | H197: -24 | I197: 155200 | J197: 掲示板
A198: 197 | B198: 4619 | C198: 東証1部 | D198: 日本特殊塗料(株) | F198: 951 | G198: -0.0125 | H198: -12 | I198: 16300 | J198: 掲示板
A199: 198 | B199: 9502 | C199: 東証1部 | D199: 中部電力(株) | F199: 1229 | G199: -0.0125 | H199: -16 | I199: 2348500 | J199: 掲示板
A200: 199 | B200: 3512 | C200: 東証1部 | D200: 日本フエルト(株) | F200: 479 | G200: -0.0124 | H200: -6 | I200: 5700 | J200: 掲示板
... 1 more rows
